fUST/lending_fUST_20240518
["ID","MTS","AMOUNT","RATE_DAILY","PERIOD"]
[327356964,1716013844079,-338.63978067,0.00016336,2]
[327356965,1716013844089,-262.778139,0.00016336,2]
[327356966,1716013844099,-155.1039271,0.00016336,2]
[327356967,1716013844109,-241.88007353,0.00016336,2]
[327356968,1716013844119,-154.9442096,0.00016336,2]
[327356969,1716013844129,-264.27428132,0.00016336,2]
[327356970,1716013844138,-452.2611565,0.00016336,2]
[327356971,1716013844148,-155.35664574,0.00016336,2]
[327356972,1716013844157,-201.21239824,0.00016336,2]
[327356973,1716013844167,-186.45989213,0.00016336,2]
[327356974,1716013844176,-2808.64147551,0.00016336,2]
[327356975,1716013844186,-997.15183921,0.00016336,2]
[327356976,1716013844196,-941.07450394,0.00016336,2]
[327356977,1716013844205,-1142.44395601,0.00016336,2]
[327356978,1716013844215,-160.06089797,0.00016336,2]
[327356980,1716013844224,-389.96412964,0.00016338,2]
[327356982,1716013844234,-1955.55595912,0.00016338,2]
[327356984,1716013844243,-4222.10020806,0.0001638,2]
[327356987,1716013844253,-1824.12670797,0.00016398,2]
[327356989,1716013844262,-526.29111191,0.00016399,2]
[327356990,1716013844271,-38990.00741931,0.000164,2]
[327356991,1716013844281,-389.96412961,0.00016407,2]
[327356992,1716013844291,-620.00272995,0.00016426,2]
[327356993,1716013844301,-213.84088782,0.00016436,2]
[327356994,1716013844311,-8213.87024345,0.00016437,2]
[327356995,1716013844320,-3860.62939803,0.00016438,3]
[327356996,1716013844331,-500.0,0.00016438,2]
[327356997,1716013844339,-643.67919596,0.00016438,2]
[327356998,1716013844348,-500.0,0.00016438,2]
[327356999,1716013844357,-500.0,0.00016438,2]
[327357000,1716013844367,-500.0,0.00016438,2]
[327357001,1716013844376,-500.0,0.00016438,2]
[327357002,1716013844386,-500.0,0.00016438,2]
[327357003,1716013844398,-243.73196239,0.00016438,2]
[327357004,1716013844407,-500.99488443,0.00016438,2]
[327357005,1716013844417,-500.0,0.00016438,2]
[327357006,1716013844427,-190.12609232,0.00016438,2]
[327357007,1716013844436,-500.0,0.00016438,2]
[327357008,1716013844446,-500.0,0.00016438,2]
[327357009,1716013844455,-500.0,0.00016438,2]
[327357010,1716013844464,-500.0,0.00016438,2]
[327357011,1716013844474,-500.0,0.00016438,2]
[327357012,1716013844484,-500.0,0.00016438,2]
[327357013,1716013844493,-500.0,0.00016438,2]
[327357014,1716013844503,-500.0,0.00016438,2]
[327357015,1716013844512,-500.0,0.00016438,2]
[327357016,1716013844522,-151.0,0.00016438,2]
[327357017,1716013844532,-151.0,0.00016438,2]
[327357018,1716013844542,-151.0,0.00016438,2]
[327357019,1716013844551,-500.0,0.00016438,2]
[327357020,1716013844561,-500.0,0.00016438,2]
[327357021,1716013844570,-500.0,0.00016438,2]
[327357022,1716013844580,-500.0,0.00016438,2]
[327357023,1716013844589,-500.0,0.00016438,2]
[327357024,1716013844600,-500.0,0.00016438,2]
[327357025,1716013844609,-500.0,0.00016438,2]
[327357026,1716013844619,-215.80816824,0.00016438,2]
[327357027,1716013844628,-500.0,0.00016438,2]
[327357028,1716013844638,-500.0,0.00016438,2]
[327357029,1716013844648,-500.0,0.00016438,2]
[327357030,1716013844657,-500.0,0.00016438,2]
[327357031,1716013844667,-500.0,0.00016438,2]
[327357032,1716013844676,-156.01283754,0.00016438,2]
[327357033,1716013844686,-151.0,0.00016438,2]
[327357034,1716013844695,-151.0,0.00016438,2]
[327357035,1716013844705,-151.0,0.00016438,2]
[327357036,1716013844714,-501.13625735,0.00016438,2]
[327357037,1716013844724,-504.67013,0.00016438,2]
[327357038,1716013844733,-151.0,0.00016438,2]
[327357039,1716013844743,-151.0,0.00016438,2]
[327357040,1716013844752,-156.263598,0.00016438,2]
[327357041,1716013844762,-500.0,0.00016438,2]
[327357042,1716013844771,-500.0,0.00016438,2]
[327357043,1716013844781,-562.07251152,0.00016438,2]
[327357044,1716013844790,-151.0,0.00016438,2]
[327357045,1716013844799,-153.054768,0.00016438,2]
[327357046,1716013844809,-503.66378153,0.00016438,2]
[327357047,1716013844820,-500.0,0.00016438,2]
[327357048,1716013844832,-510.0893475,0.00016438,2]
[327357049,1716013844842,-500.0,0.00016438,2]
[327357050,1716013844852,-367.72858408,0.00016438,2]
[327357051,1716013844863,-508.37965022,0.00016438,2]
[327357052,1716013845007,-553.74,0.00016438,2]
[327357053,1716013845019,-500.0,0.00016438,2]
[327357054,1716013845029,-251.49315344,0.00016438,2]
[327357055,1716013845038,-500.0,0.00016438,2]
[327357056,1716013845047,-500.0,0.00016438,2]
[327357057,1716013845057,-502.43335124,0.00016438,2]
[327357058,1716013845066,-551.10471803,0.00016438,2]
[327357059,1716013845075,-500.0,0.00016438,2]
[327357060,1716013845084,-505.38274095,0.00016438,2]
[327357061,1716013845093,-510.51634407,0.00016438,2]
[327357062,1716013845102,-601.9814888,0.00016438,2]
[327357063,1716013845111,-500.0,0.00016438,2]
[327357064,1716013845121,-500.0,0.00016438,2]
[327357065,1716013845131,-500.0,0.00016438,2]
[327357066,1716013845140,-500.0,0.00016438,2]
[327357067,1716013845149,-502.19062339,0.00016438,2]
[327357068,1716013845159,-503.73304828,0.00016438,2]
[327357069,1716013845169,-500.0,0.00016438,2]
[327357070,1716013845178,-501.89132923,0.00016438,2]
[327357071,1716013845190,-501.41744546,0.00016438,2]
[327357072,1716013845199,-506.83234703,0.00016438,2]
[327357073,1716013845208,-500.0,0.00016438,2]
[327357074,1716013845219,-503.36663052,0.00016438,2]
[327357075,1716013845230,-500.0,0.00016438,2]
[327357076,1716013845239,-504.15411609,0.00016438,2]
[327357077,1716013845248,-500.0,0.00016438,2]
[327357078,1716013845259,-502.9753516,0.00016438,2]
[327357079,1716013845269,-500.0,0.00016438,2]
[327357080,1716013845279,-325.14228118,0.00016438,2]
[327357081,1716013845289,-505.92015414,0.00016438,2]
[327357082,1716013845298,-500.0,0.00016438,2]
[327357083,1716013845307,-502.44487993,0.00016438,2]
[327357084,1716013845318,-502.68180541,0.00016438,2]
[327357085,1716013845328,-502.0187837,0.00016438,2]
[327357086,1716013845337,-527.75253996,0.00016438,2]
[327357087,1716013845347,-502.11044091,0.00016438,2]
[327357088,1716013845356,-503.33660318,0.00016438,2]
[327357089,1716013845367,-522.08954787,0.00016438,2]
[327357090,1716013845377,-504.52867511,0.00016438,2]
[327357091,1716013845387,-502.85441305,0.00016438,2]
[327357092,1716013845398,-500.0,0.00016438,2]
[327357093,1716013845407,-502.03194983,0.00016438,2]
[327357094,1716013845416,-504.45892358,0.00016438,2]
[327357095,1716013845425,-352.23685,0.00016438,2]
[327357096,1716013845434,-352.23685,0.00016438,2]
[327357097,1716013845443,-352.23685,0.00016438,2]
[327357098,1716013845454,-500.0,0.00016438,2]
[327357099,1716013845463,-352.23685,0.00016438,2]
[327357100,1716013845472,-352.23685,0.00016438,2]
[327357101,1716013845483,-352.23685,0.00016438,2]
[327357102,1716013845493,-352.23685,0.00016438,2]
[327357103,1716013845502,-352.23685,0.00016438,2]
[327357104,1716013845511,-517.79704424,0.00016438,2]
[327357105,1716013845521,-151.446942,0.00016438,2]
[327357106,1716013845533,-501.83830112,0.00016438,2]
[327357107,1716013845542,-500.0,0.00016438,2]
[327357108,1716013845551,-505.08895917,0.00016438,2]
[327357109,1716013845560,-501.00372453,0.00016438,2]
[327357110,1716013845572,-426.45753845,0.00016438,2]
[327357111,1716013845582,-501.53964541,0.00016438,2]
[327357112,1716013845592,-321.33207166,0.00016438,2]
[327357113,1716013845608,-682.35401142,0.00016438,2]
[327357114,1716013845618,-151.0,0.00016438,2]
[327357115,1716013845627,-501.33203335,0.00016438,2]
[327357116,1716013845636,-500.0,0.00016438,2]
[327357117,1716013845646,-151.0,0.00016438,2]
[327357118,1716013845656,-151.0,0.00016438,2]
[327357119,1716013845666,-151.0,0.00016438,2]
[327357120,1716013845675,-229.4650054,0.00016438,2]
[327357121,1716013845687,-211.10483083,0.00016438,2]
[327357122,1716013845697,-500.0,0.00016438,2]
[327357123,1716013845706,-504.84457765,0.00016438,2]
[327357124,1716013845716,-532.2017179,0.00016438,2]
[327357125,1716013845726,-501.08651552,0.00016438,2]
[327357126,1716013845735,-500.0,0.00016438,2]
[327357127,1716013845745,-500.0,0.00016438,2]
[327357128,1716013845755,-501.10447512,0.00016438,2]
[327357129,1716013845764,-309.08840514,0.00016438,2]
[327357130,1716013845780,-191.45732603,0.00016438,2]
[327357131,1716013845790,-500.0,0.00016438,2]
[327357132,1716013845799,-157.888186,0.00016438,2]
[327357133,1716013845808,-500.0,0.00016438,2]
[327357134,1716013845818,-500.0,0.00016438,2]
[327357135,1716013845832,-77.61047097,0.00016438,2]
[327357136,1716013845844,-423.64798038,0.00016438,2]
[327357137,1716013845853,-504.00479432,0.00016438,2]
[327357138,1716013845863,-278.7808548,0.00016438,2]
[327357139,1716013845891,-289.89676959,0.00016438,2]
[327357140,1716013845903,-72.0629195,0.00016438,2]
[327357141,1716013845913,-505.27831656,0.00016438,2]
[327357142,1716013845923,-500.60195929,0.00016438,2]
[327357143,1716013845933,-511.21175295,0.00016438,2]
[327357144,1716013845943,-501.94411196,0.00016438,2]
[327357145,1716013845953,-500.55828429,0.00016438,2]
[327357146,1716013845962,-505.25175662,0.00016438,2]
[327357147,1716013845972,-502.84696255,0.00016438,2]
[327357148,1716013845981,-508.86724581,0.00016438,2]
[327357149,1716013845992,-500.52225071,0.00016438,2]
[327357150,1716013846002,-504.06249574,0.00016438,2]
[327357151,1716013846012,-505.46397718,0.00016438,2]
[327357152,1716013846022,-491.21178867,0.00016438,2]
[327357153,1716013846031,-512.55327914,0.00016438,2]
[327357154,1716013846041,-184.77289624,0.00016438,2]
[327357155,1716013846050,-500.0,0.00016438,2]
[327357156,1716013846060,-571.69262436,0.00016438,2]
[327357157,1716013846069,-506.52770784,0.00016438,2]
[327357158,1716013846079,-513.49713772,0.00016438,2]
[327357159,1716013846088,-501.15607277,0.00016438,2]
[327357160,1716013846097,-504.56600843,0.00016438,2]
[327357161,1716013846108,-509.93420702,0.00016438,2]
[327357162,1716013846118,-184.90564,0.00016438,2]
[327357163,1716013846128,-184.90564,0.00016438,2]
[327357164,1716013846138,-184.90564,0.00016438,2]
[327357165,1716013846147,-184.90564,0.00016438,2]
[327357166,1716013846157,-184.90564,0.00016438,2]
[327357167,1716013846167,-509.02999421,0.00016438,2]
[327357168,1716013846177,-500.0,0.00016438,2]
[327357169,1716013846188,-446.377202,0.00016438,2]
[327357170,1716013846199,-446.377202,0.00016438,2]
[327357171,1716013846208,-500.0,0.00016438,2]
[327357172,1716013846217,-446.377202,0.00016438,2]
[327357174,1716013846226,-446.377202,0.00016438,2]
[327357175,1716013846236,-446.377202,0.00016438,2]
[327357176,1716013846245,-446.377202,0.00016438,2]
[327357177,1716013846255,-446.377202,0.00016438,2]
[327357178,1716013846266,-500.0,0.00016438,2]
[327357179,1716013846276,-446.377202,0.00016438,2]
[327357180,1716013846286,-446.377202,0.00016438,2]
[327357181,1716013846297,-446.377202,0.00016438,2]
[327357182,1716013846306,-151.0,0.00016438,2]
[327357183,1716013846315,-151.0,0.00016438,2]
[327357184,1716013846325,-152.4616,0.00016438,2]
[327357185,1716013846334,-500.0,0.00016438,2]
[327357186,1716013846342,-5652.97,0.00016438,2]
[327357187,1716013846351,-151.0,0.00016438,2]
[327357188,1716013846360,-231.232735,0.00016438,2]
[327357189,1716013846369,-151.0,0.00016438,2]
[327357190,1716013846379,-151.0,0.00016438,2]
[327357191,1716013846388,-151.0,0.00016438,2]
[327357192,1716013846397,-151.0,0.00016438,2]
[327357193,1716013846407,-151.0,0.00016438,2]
[327357194,1716013846416,-500.0,0.00016438,2]
[327357195,1716013846425,-506.23635785,0.00016438,2]
[327357196,1716013846435,-500.0,0.00016438,2]
[327357197,1716013846444,-389.44660184,0.00016438,2]
[327357198,1716013846454,-3631.84,0.00016438,2]
[327357199,1716013846463,-500.0,0.00016438,2]
[327357200,1716013846473,-500.0,0.00016438,2]
[327357201,1716013846483,-281.56062314,0.00016438,2]
[327357213,1716013846863,-218.43937686,0.00016438,2]
[327357214,1716013846874,-500.0,0.00016438,2]
[327357215,1716013846883,-151.0,0.00016438,2]
[327357216,1716013846892,-151.0,0.00016438,2]
[327357217,1716013846903,-151.0,0.00016438,2]
[327357218,1716013846914,-272.134566,0.00016438,2]
[327357219,1716013846924,-500.0,0.00016438,2]
[327357220,1716013846934,-500.0,0.00016438,2]
[327357221,1716013846943,-500.0,0.00016438,2]
[327357222,1716013846952,-500.0,0.00016438,2]
[327357223,1716013846962,-500.0,0.00016438,2]
[327357224,1716013846971,-500.0,0.00016438,2]
[327357225,1716013846979,-500.0,0.00016438,2]
[327357226,1716013846989,-500.0,0.00016438,2]
[327357227,1716013846998,-500.0,0.00016438,2]
[327357228,1716013847007,-3284.18,0.00016438,2]
[327357229,1716013847017,-1162.81,0.00016438,2]
[327357230,1716013847026,-426.363416,0.00016438,2]
[327357231,1716013847035,-426.363416,0.00016438,2]
[327357232,1716013847044,-426.363416,0.00016438,2]
[327357233,1716013847053,-426.363416,0.00016438,2]
[327357234,1716013847063,-426.363416,0.00016438,2]
[327357235,1716013847072,-426.363416,0.00016438,2]
[327357236,1716013847084,-426.363416,0.00016438,2]
[327357237,1716013847093,-426.363416,0.00016438,2]
[327357238,1716013847103,-426.363416,0.00016438,2]
[327357239,1716013847116,-426.363416,0.00016438,2]
[327357240,1716013847125,-500.0,0.00016438,2]
[327357241,1716013847134,-500.0,0.00016438,2]
[327357242,1716013847144,-500.0,0.00016438,2]
[327357243,1716013847153,-500.0,0.00016438,2]
[327357244,1716013847162,-500.0,0.00016438,2]
[327357245,1716013847171,-500.0,0.00016438,2]
[327357246,1716013847180,-504.21252514,0.00016438,2]
[327357247,1716013847189,-151.0,0.00016438,2]
[327357248,1716013847198,-500.0,0.00016438,2]
[327357249,1716013847207,-744.21,0.00016438,2]
[327357250,1716013847216,-500.0,0.00016438,2]
[327357251,1716013847226,-500.0,0.00016438,2]
[327357252,1716013847235,-500.0,0.00016438,2]
[327357253,1716013847244,-151.0,0.00016438,2]
[327357254,1716013847254,-151.0,0.00016438,2]
[327357255,1716013847264,-151.0,0.00016438,2]
[327357256,1716013847273,-151.0,0.00016438,2]
[327357257,1716013847283,-151.0,0.00016438,2]
[327357258,1716013847292,-509.89819883,0.00016438,2]
[327357259,1716013847301,-500.0,0.00016438,2]
[327357260,1716013847311,-317.99302279,0.00016438,2]
[327357261,1716013847321,-1079.67793,0.00016438,2]
[327357262,1716013847333,-500.0,0.00016438,2]
[327357263,1716013847341,-1079.67793,0.00016438,2]
[327357264,1716013847350,-1079.67793,0.00016438,2]
[327357265,1716013847359,-1079.67793,0.00016438,2]
[327357266,1716013847367,-1079.67793,0.00016438,2]
[327357267,1716013847377,-1079.67793,0.00016438,2]
[327357268,1716013847386,-1079.67793,0.00016438,2]
[327357269,1716013847396,-1079.67793,0.00016438,2]
[327357270,1716013847405,-1079.67793,0.00016438,2]
[327357271,1716013847414,-558.50843656,0.00016438,2]
[327357272,1716013847428,-521.16949344,0.00016438,2]
[327357273,1716013847437,-231.592334,0.00016438,2]
[327357274,1716013847447,-231.592334,0.00016438,2]
[327357275,1716013847457,-231.592334,0.00016438,2]
[327357276,1716013847466,-231.592334,0.00016438,2]
[327357277,1716013847476,-231.592334,0.00016438,2]
[327357278,1716013847486,-231.592334,0.00016438,2]
[327357279,1716013847495,-500.0,0.00016438,2]
[327357280,1716013847504,-231.592334,0.00016438,2]
[327357281,1716013847514,-162.42261445,0.00016438,2]
[327357282,1716014050305,-154.70605849,9.999e-05,2]
[327357299,1716014389925,4995.29394151,9.999e-05,2]
[327357300,1716014735169,-236.5182214,9.997e-05,2]
[327357301,1716014735188,-1073.60457429,9.997e-05,2]
[327357323,1716014843112,-1563.27492531,9.997e-05,2]
[327357324,1716014854167,-41.90889757,9.997e-05,2]
[327357325,1716014854189,-6115.36067589,9.997e-05,2]
[327357326,1716014854212,-664.22670668,9.998e-05,2]
[327357327,1716014854235,-154.70605849,0.0001,2]
[327357328,1716014854258,-91.0736646,0.00010959,2]
[327357337,1716014954112,-165.16364264,0.0001,2]
[327357338,1716014954132,-771.85111591,0.0001,2]
[327357339,1716014954152,-267.93,0.00010959,2]
[327357345,1716014959114,-1084.51096583,0.000138,2]
[327357346,1716014959136,-382.07055432,0.00014304,2]
[327357347,1716014970142,-6424.78282308,0.00014304,2]
[327357348,1716014970982,771.85111591,0.00014792,2]
[327357353,1716014994981,686.93512457,0.00014792,2]
[327357370,1716015032038,-84.91599134,0.00014792,2]
[327357371,1716015032049,-438.037465,0.00014927,2]
[327357372,1716015032059,-458.46578305,0.00015,2]
[327357373,1716015032072,-690.60498081,0.00015,2]
[327357374,1716015032081,-1439.7176633,0.00015085,2]
[327357375,1716015032091,-3699.56949019,0.00015971,2]
[327357376,1716015032102,-290.4197096,0.00015973,2]
[327357377,1716015032110,-204.3360345,0.00016,2]
[327357378,1716015032119,-3095.46719057,0.00016,2]
[327357379,1716015032128,-153.0,0.00016,2]
[327357380,1716015032137,-153.0,0.00016,2]
[327357381,1716015032147,-3390.53297112,0.00016,2]
[327357382,1716015032156,-7967.64444353,0.00016,2]
[327357383,1716015032165,-150.0,0.00016137,3]
[327357384,1716015032174,-431.4,0.00016138,2]
[327357385,1716015032183,-431.4,0.00016138,3]
[327357386,1716015032192,-340.6219983,0.00016164,2]
[327357387,1716015032202,-417.06273246,0.00016198,2]
[327357388,1716015032211,-153.0,0.000162,2]
[327357389,1716015032220,-153.0,0.000162,2]
[327357390,1716015032229,-153.0,0.000162,2]
[327357391,1716015032240,-204.27807549,0.00016236,2]
[327357392,1716015032251,-150.31301354,0.00016244,2]
[327357393,1716015032263,-4222.10020806,0.00016277,2]
[327357394,1716015032274,-233.93356801,0.00016335,2]
[327357395,1716015032284,-155.07444251,0.00016336,2]
[327357396,1716015032296,-317.17347307,0.00016336,2]
[327357397,1716015032305,-499.78948255,0.00016336,2]
[327357398,1716015032316,-164.57702771,0.00016336,2]
[327357399,1716015032326,-154.93785178,0.00016336,2]
[327357400,1716015032336,-1563.27492531,0.00016336,2]
[327357401,1716015032347,-2412.68595188,0.00016336,2]
[327357402,1716015032356,-1094.84700582,0.00016336,2]
[327357403,1716015032365,-238.72491025,0.00016336,2]
[327357404,1716015032374,-194.39143777,0.00016336,2]
[327357405,1716015032384,-155.1501622,0.00016336,2]
[327357406,1716015032394,-449.90281096,0.00016336,2]
[327357407,1716015032403,-154.83172579,0.00016336,2]
[327357408,1716015032413,-1352.93626915,0.00016336,2]
[327357409,1716015032422,-819.58323,0.00016336,2]
[327357410,1716015032432,-350.83934875,0.00016336,2]
[327357411,1716015032442,-155.13643218,0.00016336,2]
[327357412,1716015032451,-523.67053193,0.00016336,2]
[327357413,1716015032461,-192.8295564,0.00016336,2]
[327357414,1716015032470,-159.13677069,0.00016336,2]
[327357415,1716015032479,-666.92611432,0.00016336,2]
[327357416,1716015032491,-155.95561258,0.00016336,2]
[327357417,1716015032501,-281.13686068,0.00016336,2]
[327357418,1716015032511,-263.78293274,0.00016336,2]
[327357419,1716015032520,-208.12310828,0.00016336,2]
[327357420,1716015032529,-718.48788165,0.00016336,2]
[327357421,1716015032540,-163.22367639,0.00016336,2]
[327357422,1716015032550,-237.00521211,0.00016337,2]
[327357423,1716015032559,-371.81462631,0.00016338,2]
[327357424,1716015032570,-3346.1683299,0.00016338,2]
[327357425,1716015032581,-431.4,0.00016389,2]
[327357426,1716015032590,-2323.47698388,0.00016397,2]
[327357427,1716015032603,-942.53705457,0.00016398,2]
[327357428,1716015032612,-521.13198345,0.00016399,2]
[327357429,1716015032622,-371.81462629,0.00016407,2]
[327357430,1716015032633,-958.72793949,0.00016435,2]
[327357431,1716015032643,-2400.65057528,0.00016436,2]
[327357432,1716015032654,-80000.0,0.00016437,2]
[327357433,1716015032665,-3014.52160994,0.00016438,3]
[327357439,1716015039651,-1687.5089171,0.00016435,2]
[327357441,1716015039660,-295.24620862,0.00016438,3]
[327357465,1716015039841,-2481.17627848,0.00016438,3]
[327357467,1716015039850,-14163.17832235,0.00016438,3]
[327357469,1716015039859,-500.0,0.00016438,2]
[327357471,1716015039868,-500.0,0.00016438,2]
[327357473,1716015039877,-282.06289032,0.00016438,2]
[327357475,1716015039887,-202.99,0.00016438,2]
[327357477,1716015039896,-348.2,0.00016438,2]
[327357479,1716015039905,-569.16132028,0.00016438,2]
[327357482,1716015039915,-411.52,0.00016438,2]
[327357485,1716015039924,-500.0,0.00016438,2]
[327357487,1716015039933,-500.0,0.00016438,2]
[327357489,1716015039942,-500.0,0.00016438,2]
[327357491,1716015039952,-500.0,0.00016438,2]
[327357493,1716015039961,-568.43379303,0.00016438,2]
[327357495,1716015039970,-565.22766407,0.00016438,2]
[327357497,1716015039980,-501.61604106,0.00016438,2]
[327357499,1716015039989,-251.64268877,0.00016438,2]
[327357501,1716015039998,-500.0,0.00016438,2]
[327357503,1716015040007,-500.0,0.00016438,2]
[327357505,1716015040017,-151.0,0.00016438,2]
[327357507,1716015040026,-500.0,0.00016438,2]
[327357509,1716015040035,-500.0,0.00016438,2]
[327357511,1716015040044,-500.0,0.00016438,2]
[327357513,1716015040054,-500.0,0.00016438,2]
[327357514,1716015040063,-500.0,0.00016438,2]
[327357517,1716015040073,-500.0,0.00016438,2]
[327357518,1716015040082,-500.0,0.00016438,2]
[327357520,1716015040092,-500.0,0.00016438,2]
[327357522,1716015040101,-500.0,0.00016438,2]
[327357524,1716015040110,-500.0,0.00016438,2]
[327357526,1716015040119,-500.0,0.00016438,2]
[327357528,1716015040128,-375.18846422,0.00016438,2]
[327357530,1716015040138,-303.77288068,0.00016438,2]
[327357533,1716015040147,-500.0,0.00016438,2]
[327357534,1716015040156,-500.0,0.00016438,2]
[327357537,1716015040166,-500.0,0.00016438,2]
[327357538,1716015040176,-406.34836466,0.00016438,2]
[327357540,1716015040185,-211.34211,0.00016438,2]
[327357542,1716015040194,-211.34211,0.00016438,2]
[327357544,1716015040203,-211.34211,0.00016438,2]
[327357546,1716015040212,-211.34211,0.00016438,2]
[327357548,1716015040222,-501.65332219,0.00016438,2]
[327357551,1716015040232,-151.0,0.00016438,2]
[327357552,1716015040241,-500.0,0.00016438,2]
[327357553,1716015040250,-217.61196381,0.00016438,2]
[327357554,1716015040259,-501.22724457,0.00016438,2]
[327357555,1716015040268,-500.0,0.00016438,2]
[327357556,1716015040278,-502.24970632,0.00016438,2]
[327357557,1716015040287,-500.0,0.00016438,2]
[327357558,1716015040296,-504.62076484,0.00016438,2]
[327357559,1716015040305,-504.60951557,0.00016438,2]
[327357560,1716015040315,-500.0,0.00016438,2]
[327357561,1716015040324,-501.73536619,0.00016438,2]
[327357562,1716015040333,-500.0,0.00016438,2]
[327357563,1716015040343,-500.0,0.00016438,2]
[327357564,1716015040354,-500.0,0.00016438,2]
[327357565,1716015040364,-502.01281642,0.00016438,2]
[327357566,1716015040373,-502.669129,0.00016438,2]
[327357567,1716015040383,-310.82892052,0.00016438,2]
[327357569,1716015040392,-155.85370913,0.00016438,2]
[327357571,1716015040402,-500.0,0.00016438,2]
[327357573,1716015040413,-500.0,0.00016438,2]
[327357575,1716015040422,-500.0,0.00016438,2]
[327357577,1716015040432,-421.90092471,0.00016438,2]
[327357579,1716015040442,-500.0,0.00016438,2]
[327357581,1716015040451,-544.23,0.00016438,2]
[327357583,1716015040461,-544.23,0.00016438,2]
[327357585,1716015040470,-544.23,0.00016438,2]
[327357587,1716015040479,-500.0,0.00016438,2]
[327357589,1716015040488,-544.23,0.00016438,2]
[327357591,1716015040497,-544.23,0.00016438,2]
[327357593,1716015040507,-510.31,0.00016438,2]
[327357595,1716015040517,-500.0,0.00016438,2]
[327357597,1716015040526,-151.0,0.00016438,2]
[327357599,1716015040535,-151.0,0.00016438,2]
[327357601,1716015040544,-151.0,0.00016438,2]
[327357603,1716015040554,-504.26717806,0.00016438,2]
[327357605,1716015040563,-503.90597654,0.00016438,2]
[327357607,1716015040572,-500.0,0.00016438,2]
[327357609,1716015040581,-151.0,0.00016438,2]
[327357611,1716015040590,-155.041217,0.00016438,2]
[327357613,1716015040599,-500.0,0.00016438,2]
[327357615,1716015040609,-500.0,0.00016438,2]
[327357617,1716015040618,-500.0,0.00016438,2]
[327357619,1716015040628,-500.0,0.00016438,2]
[327357621,1716015040638,-634.22939055,0.00016438,2]
[327357623,1716015040647,-500.0,0.00016438,2]
[327357625,1716015040656,-3480.51,0.00016438,2]
[327357627,1716015040666,-5417.43,0.00016438,2]
[327357629,1716015040675,-500.0,0.00016438,2]
[327357631,1716015040684,-151.0,0.00016438,2]
[327357633,1716015040694,-270.53406,0.00016438,2]
[327357635,1716015040703,-223.188601,0.00016438,2]
[327357637,1716015040717,-223.188601,0.00016438,2]
[327357639,1716015040726,-366.46350252,0.00016438,2]
[327357641,1716015040735,-223.188601,0.00016438,2]
[327357643,1716015040745,-223.188601,0.00016438,2]
[327357645,1716015040755,-500.0,0.00016438,2]
[327357647,1716015040764,-1114.36,0.00016438,2]
[327357649,1716015040772,-213.181708,0.00016438,2]
[327357651,1716015040783,-213.181708,0.00016438,2]
[327357653,1716015040792,-213.181708,0.00016438,2]
[327357655,1716015040802,-213.181708,0.00016438,2]
[327357657,1716015040811,-500.0,0.00016438,2]
[327357659,1716015040820,-500.0,0.00016438,2]
[327357660,1716015040829,-713.21,0.00016438,2]
[327357676,1716015040964,-440.91002273,0.00016438,2]
[327357678,1716015040974,-277.09716985,0.00016438,2]
[327357680,1716015040983,-151.0,0.00016438,2]
[327357682,1716015040992,-151.0,0.00016438,2]
[327357684,1716015041002,-500.0,0.00016438,2]
[327357686,1716015041011,-500.0,0.00016438,2]
[327357688,1716015041020,-151.0,0.00016438,2]
[327357690,1716015041029,-151.0,0.00016438,2]
[327357692,1716015041039,-1112.732129,0.00016438,2]
[327357694,1716015041048,-443.50746496,0.00016438,2]